bitfinex/quotes_BTCUSD_20250610
["timestamp","ask_amount","ask_price","bid_price","bid_amount"]
[1749546264913,0.75776846,109110.0,109100.0,1.38836318]
[1749546265094,0.75776846,109110.0,109100.0,1.39694867]
[1749546265344,0.80986499,109110.0,109100.0,1.40553531]
[1749546265556,0.80986499,109110.0,109100.0,1.38836381]
[1749546265974,0.80986499,109110.0,109100.0,1.40553529]
[1749546266180,0.80986499,109110.0,109100.0,1.37977806]
[1749546266382,0.80986499,109110.0,109100.0,1.40553531]
[1749546266589,0.80986499,109110.0,109100.0,1.39694956]
[1749546266802,0.80986499,109110.0,109100.0,1.40553531]
[1749546267189,0.80986499,109110.0,109100.0,1.38121531]
[1749546267396,0.80986499,109110.0,109100.0,1.39694945]
[1749546267601,0.80986499,109110.0,109100.0,1.37977806]
[1749546267806,0.80986499,109110.0,109100.0,1.39694875]
[1749546268013,0.80986499,109110.0,109100.0,1.40553409]
[1749546268220,0.80986499,109110.0,109100.0,1.37977806]
[1749546268424,0.80986499,109110.0,109100.0,1.40553409]
[1749546268638,0.80986499,109110.0,109100.0,1.39694875]
[1749546268864,0.75776846,109110.0,109100.0,1.39694875]
[1749546269074,0.72680846,109110.0,109100.0,1.39694866]
[1749546269288,0.72680846,109110.0,109100.0,1.40553336]
[1749546269489,0.63332846,109110.0,109100.0,1.40553336]
[1749546269691,0.72680846,109110.0,109100.0,1.39694806]
[1749546269898,0.74200846,109110.0,109100.0,1.38121306]
[1749546270112,0.75760846,109110.0,109100.0,1.40553306]
[1749546270319,0.74200846,109110.0,109100.0,1.40553306]
[1749546270522,0.72680846,109110.0,109100.0,1.40553191]
[1749546270727,0.63332846,109110.0,109100.0,1.40553191]
[1749546270932,0.72696846,109110.0,109100.0,1.40553191]
[1749546271146,0.63332846,109110.0,109100.0,1.40553191]
[1749546271354,0.72700846,109110.0,109100.0,1.40553191]
[1749546271562,0.72700846,109110.0,109100.0,1.42349536]
[1749546271773,0.72700846,109110.0,109100.0,1.44924778]
[1749546271979,0.72700846,109110.0,109100.0,1.45726349]
[1749546272196,0.72700846,109110.0,109100.0,1.44867942]
[1749546272400,0.6352106,109110.0,109100.0,1.46584755]
[1749546273432,0.6352106,109110.0,109100.0,1.44867942]
[1749546273838,0.6352106,109110.0,109100.0,1.46584761]
[1749546274038,0.6352106,109110.0,109100.0,1.44867942]
[1749546274242,0.6352106,109110.0,109100.0,1.465848]
[1749546274449,0.6352106,109110.0,109100.0,1.46584922]
[1749546274646,0.6352106,109110.0,109100.0,1.46585001]
[1749546274878,0.6352106,109110.0,109100.0,1.45726513]
[1749546275081,0.6352106,109110.0,109100.0,1.44925001]
[1749546275283,0.6352106,109110.0,109100.0,1.42436513]
[1749546275696,0.6352106,109110.0,109100.0,1.42436492]
[1749546275907,0.6352106,109110.0,109100.0,1.4329497]
[1749546276121,0.25591523,109130.0,109100.0,1.46404968]
[1749546276122,0.19979688,109130.0,109100.0,1.46404968]
[1749546276384,0.19254892,109140.0,109120.0,0.0311]
[1749546276605,0.29533809,109140.0,109130.0,0.09516731]
[1749546276829,0.19241589,109140.0,109130.0,0.12091902]
[1749546277024,0.19241589,109140.0,109130.0,0.49346901]
[1749546277025,0.62617589,109140.0,109130.0,0.49346901]
[1749546277238,0.62617589,109140.0,109130.0,0.4677189]
[1749546277448,0.19241589,109140.0,109130.0,0.68429381]
[1749546278112,0.53241589,109140.0,109130.0,0.68429381]
[1749546278325,0.53241589,109140.0,109130.0,0.68629381]
[1749546278534,0.53241589,109140.0,109130.0,0.44661139]
[1749546278772,0.53241589,109140.0,109130.0,0.44753717]
[1749546278976,0.53241589,109140.0,109130.0,0.45295713]
[1749546279180,0.53241589,109140.0,109130.0,0.45295707]
[1749546279389,0.53241589,109140.0,109130.0,0.44441125]
[1749546279602,0.53241589,109140.0,109130.0,0.45295704]
[1749546279810,0.53241589,109140.0,109130.0,0.44441136]
[1749546280474,0.61499842,109140.0,109130.0,0.44440293]
[1749546280694,0.64529842,109140.0,109130.0,0.44440324]
[1749546280908,0.64529842,109140.0,109130.0,0.44440358]
[1749546281118,0.64529842,109140.0,109130.0,0.42732]
[1749546281330,0.64529842,109140.0,109130.0,0.42008354]
[1749546281538,0.73709628,109140.0,109130.0,0.41708354]
[1749546281745,0.73709628,109140.0,109130.0,0.44140354]
[1749546281915,0.74109628,109140.0,109130.0,0.4170836]
[1749546282341,0.74109628,109140.0,109130.0,0.42432]
[1749546284658,0.74109628,109140.0,109130.0,0.02432]
[1749546285851,0.76798564,109140.0,109130.0,0.02432]
[1749546286436,0.86178564,109140.0,109130.0,0.02432]
[1749546289548,0.86178564,109140.0,109130.0,0.42432]
[1749546291269,0.86178564,109140.0,109130.0,0.4]
[1749546292128,0.19243087,109130.0,109120.0,0.02432]
[1749546292330,0.40930873,109130.0,109120.0,0.04996557]
[1749546292529,0.40930873,109130.0,109120.0,0.04141705]
[1749546292764,0.40930873,109130.0,109120.0,0.44141705]
[1749546292952,0.40930873,109130.0,109120.0,0.42432]
[1749546293362,0.40930873,109130.0,109120.0,0.4424193]
[1749546293730,0.40930873,109130.0,109120.0,0.401]
[1749546293945,0.40930873,109130.0,109120.0,0.44242444]
[1749546294894,0.50110659,109130.0,109120.0,0.44242444]
[1749546295173,0.50110659,109130.0,109120.0,0.42532]
[1749546295460,0.50110659,109130.0,109120.0,0.43387222]
[1749546295669,0.50110659,109130.0,109120.0,0.45097666]
[1749546296054,0.50110659,109130.0,109120.0,0.42532]
[1749546296258,0.50110659,109130.0,109120.0,0.45097666]
[1749546296465,0.50110659,109130.0,109120.0,0.44242444]
[1749546296670,0.50110659,109130.0,109120.0,0.43387222]
[1749546296878,0.50110659,109130.0,109120.0,0.44242399]
[1749546297097,0.50110659,109130.0,109120.0,0.45098254]
[1749546297315,0.48560659,109130.0,109120.0,0.45098254]
[1749546297753,0.48560659,109130.0,109120.0,0.44242836]
[1749546297965,0.48560659,109130.0,109120.0,0.44242825]
[1749546298174,0.48560659,109130.0,109120.0,0.43387412]
[1749546298347,0.48560659,109130.0,109120.0,0.45098237]
[1749546298548,0.46970659,109130.0,109120.0,0.42532]
[1749546298754,0.46970659,109130.0,109120.0,0.43387404]
[1749546298926,0.46970659,109130.0,109120.0,0.45098209]
[1749546299558,0.46970659,109130.0,109120.0,0.42532]
[1749546299762,0.46970659,109130.0,109120.0,0.45098791]
[1749546300001,0.46970659,109130.0,109120.0,0.42532]
[1749546300204,0.46970659,109130.0,109120.0,0.45099042]
[1749546300414,0.46970659,109130.0,109120.0,0.44243696]
[1749546300749,0.46970659,109130.0,109120.0,0.45099544]
[1749546300956,0.50040659,109130.0,109120.0,0.45099544]
[1749546301565,0.50040659,109130.0,109120.0,0.45100348]
[1749546301771,0.50040659,109130.0,109120.0,0.43388116]
[1749546301979,0.50040659,109130.0,109120.0,0.45100346]
[1749546302394,0.50040659,109130.0,109120.0,0.43388115]
[1749546302801,0.50040659,109130.0,109120.0,0.4424423]
[1749546303033,0.50040659,109130.0,109120.0,0.45100345]
[1749546303241,0.50040659,109130.0,109120.0,0.4595646]
[1749546303450,0.50040659,109130.0,109120.0,0.42532]
[1749546303653,0.50040659,109130.0,109120.0,0.45100345]
[1749546304062,0.50040659,109130.0,109120.0,0.4424423]
[1749546304288,0.50040659,109130.0,109120.0,0.05101783]
[1749546304490,0.50040659,109130.0,109120.0,0.04245189]
[1749546304691,0.50040659,109130.0,109120.0,0.05101783]
[1749546304916,0.40860873,109130.0,109120.0,0.45101783]
[1749546305125,0.40860873,109130.0,109120.0,0.44245371]
[1749546305521,0.40860873,109130.0,109120.0,0.43388685]
[1749546305725,0.40860873,109130.0,109120.0,0.42532]
[1749546305853,0.50040659,109130.0,109120.0,0.42532]
[1749546306224,0.50040659,109130.0,109120.0,0.45102056]
[1749546306354,0.48480659,109130.0,109120.0,0.45102056]
[1749546306759,0.48480659,109130.0,109120.0,0.44245371]
[1749546307019,0.48480659,109130.0,109120.0,0.43388685]
[1749546307209,0.50170659,109130.0,109120.0,0.401]
[1749546307414,0.84170659,109130.0,109120.0,0.001]
[1749546307611,0.84170659,109130.0,109120.0,0.02672437]
[1749546307815,0.84170659,109130.0,109120.0,0.001]
[1749546307971,0.84170659,109130.0,109120.0,0.02672431]
[1749546308168,0.84170659,109130.0,109120.0,0.01714954]
[1749546308370,0.84170659,109130.0,109120.0,0.02572443]
[1749546308570,0.1924485,109120.0,109110.0,0.42432]
[1749546308773,0.28424636,109120.0,109110.0,0.42689481]
[1749546308977,0.28424636,109120.0,109110.0,0.43412]
[1749546309352,0.28424636,109120.0,109110.0,0.45126962]
[1749546309557,0.37792636,109120.0,109110.0,0.43412]
[1749546309741,0.37792636,109120.0,109110.0,0.43646962]
[1749546309941,0.37792636,109120.0,109110.0,0.45880477]
[1749546310146,0.71792636,109120.0,109110.0,0.45022]
[1749546310351,0.71792636,109120.0,109110.0,0.47767053]
[1749546310820,0.71792636,109120.0,109110.0,0.09483959]
[1749546311027,0.71792636,109120.0,109110.0,0.08625506]
[1749546311236,0.71792636,109120.0,109110.0,0.10342412]
[1749546311448,0.71792636,109120.0,109110.0,0.50342412]
[1749546311864,0.71792636,109120.0,109110.0,0.49483959]
[1749546312088,0.71792636,109120.0,109110.0,0.50342412]
[1749546312513,0.71792636,109120.0,109110.0,0.49483959]
[1749546312939,0.71792636,109120.0,109110.0,0.47767053]
[1749546313090,0.71792636,109120.0,109110.0,0.50342541]
[1749546313499,0.71792636,109120.0,109110.0,0.50342331]
[1749546313706,0.80804576,109120.0,109110.0,0.47252227]
[1749546313904,0.80804576,109120.0,109110.0,0.45535444]
[1749546314119,0.80804576,109120.0,109110.0,0.47252227]
[1749546314319,0.80804576,109120.0,109110.0,0.06393836]
[1749546314738,0.80804576,109120.0,109110.0,0.06393871]
[1749546314944,0.80804576,109120.0,109110.0,0.44507227]
[1749546315147,0.80804576,109120.0,109110.0,0.44507322]
[1749546315388,0.80804576,109120.0,109110.0,0.41932]
[1749546315518,0.80804576,109120.0,109110.0,0.44507513]
[1749546315718,0.80804576,109120.0,109110.0,0.41932]
[1749546315947,0.80804576,109120.0,109110.0,0.44507513]
[1749546317074,0.80804576,109120.0,109110.0,0.43649009]
[1749546317287,0.82444576,109120.0,109110.0,0.45107526]
[1749546317463,0.84004576,109120.0,109110.0,0.03390551]
[1749546317643,1.33294576,109120.0,109110.0,0.03390553]
[1749546317848,1.33294576,109120.0,109110.0,0.4510767]
[1749546318067,1.33294576,109120.0,109110.0,0.43390557]
[1749546318263,1.33294576,109120.0,109110.0,0.45107671]
[1749546318504,1.33294576,109120.0,109110.0,0.44249114]
[1749546318726,1.33294576,109120.0,109110.0,0.45107671]
[1749546318943,1.33294576,109120.0,109110.0,0.43390554]
[1749546319116,1.33294576,109120.0,109110.0,0.42532]
[1749546319265,1.33294576,109120.0,109110.0,0.43390557]
[1749546319458,1.33294576,109120.0,109110.0,0.44249115]
[1749546319749,1.33294576,109120.0,109110.0,0.42532]
[1749546319867,1.33294576,109120.0,109110.0,0.45107672]
[1749546320075,1.33294576,109120.0,109110.0,0.44249115]
[1749546320280,1.33294576,109120.0,109110.0,0.45107049]
[1749546320479,1.33294576,109120.0,109110.0,0.45105837]
[1749546320686,1.33294576,109120.0,109110.0,0.43389934]
[1749546320893,1.33294576,109120.0,109110.0,0.05105854]
[1749546321266,1.33294576,109120.0,109110.0,0.02673854]
[1749546321469,1.33294576,109120.0,109110.0,0.401]
[1749546321673,1.33294576,109120.0,109110.0,0.41815902]
[1749546321887,1.33294576,109120.0,109110.0,0.42673897]
[1749546322352,1.33294576,109120.0,109110.0,0.401]
[1749546322515,1.33294576,109120.0,109110.0,0.40957781]
[1749546322748,1.33294576,109120.0,109110.0,0.42673403]
[1749546322952,1.33294576,109120.0,109110.0,0.426734]
[1749546323139,1.24282636,109120.0,109110.0,0.409578]
[1749546323339,1.24282636,109120.0,109110.0,0.401]
[1749546323553,1.24282636,109120.0,109110.0,0.40957683]
[1749546323686,1.24282636,109120.0,109110.0,0.42573049]
[1749546324137,1.45482636,109120.0,109110.0,0.42573049]
[1749546324337,1.45482636,109120.0,109110.0,0.00857693]
[1749546324484,0.19246614,109110.0,109100.0,0.97377806]
[1749546324690,0.378224,109110.0,109100.0,0.97377806]
[1749546324931,0.378224,109110.0,109100.0,1.39093173]
[1749546325139,0.378224,109110.0,109100.0,1.39950855]
[1749546325307,0.378224,109110.0,109100.0,1.42263172]
[1749546325747,0.378224,109110.0,109100.0,1.43220855]
[1749546326068,0.378224,109110.0,109100.0,1.41505489]
[1749546326276,0.378224,109110.0,109100.0,1.43220855]
[1749546326854,0.44984389,109110.0,109100.0,1.43220855]
[1749546327384,0.44984389,109110.0,109100.0,1.40050855]
[1749546327668,0.44984389,109110.0,109100.0,1.4004999]
[1749546327807,0.44984389,109110.0,109100.0,1.37477806]
[1749546328007,0.44984389,109110.0,109100.0,1.38335056]
[1749546328268,0.44984389,109110.0,109100.0,1.40049557]
[1749546328485,0.378224,109110.0,109100.0,1.43129557]
[1749546328967,0.378224,109110.0,109100.0,1.43129536]
[1749546329211,0.378224,109110.0,109100.0,1.43129516]
[1749546329488,0.378224,109110.0,109100.0,1.4312971]
[1749546329716,0.378224,109110.0,109100.0,1.40557806]
[1749546329925,0.378224,109110.0,109100.0,1.4227249]
[1749546330131,0.378224,109110.0,109100.0,1.42272489]
[1749546330539,0.378224,109110.0,109100.0,1.4312983]
[1749546331158,0.378224,109110.0,109100.0,1.41415148]
[1749546331365,0.284264,109110.0,109100.0,1.38983148]
[1749546331574,0.28638614,109110.0,109100.0,1.43129758]
[1749546331783,0.28638614,109110.0,109100.0,1.43129756]
[1749546331959,0.28638614,109110.0,109100.0,1.43129754]
[1749546332701,0.28638614,109110.0,109100.0,1.4141512]
[1749546332906,0.28638614,109110.0,109100.0,1.40557806]
[1749546333146,0.28638614,109110.0,109100.0,1.4141523]
[1749546333365,0.28638614,109110.0,109100.0,1.43130091]
[1749546333586,0.28642614,109110.0,109100.0,1.41415234]
[1749546333795,0.28642614,109110.0,109100.0,1.43129994]
[1749546334275,0.28642614,109110.0,109100.0,1.43129989]
[1749546334480,0.28642614,109110.0,109100.0,1.40557806]
[1749546334843,0.28642614,109110.0,109100.0,1.42272861]
[1749546335034,0.28642614,109110.0,109100.0,1.40557806]
[1749546335234,0.28642614,109110.0,109100.0,1.42273609]
[1749546335475,0.28642614,109110.0,109100.0,1.4313151]
[1749546335717,0.28642614,109110.0,109100.0,1.40557806]
[1749546335872,0.28642614,109110.0,109100.0,1.41415711]
[1749546336273,0.28642614,109110.0,109100.0,1.43131521]
[1749546336494,0.28642614,109110.0,109100.0,1.40557806]
[1749546336700,0.28642614,109110.0,109100.0,1.43131521]
[1749546336975,0.28642614,109110.0,109100.0,1.40557806]
[1749546337370,0.19246614,109110.0,109100.0,1.41415712]
[1749546337564,0.19246614,109110.0,109100.0,1.47820818]
[1749546337565,0.28638614,109110.0,109100.0,1.47820818]
[1749546337793,0.28638614,109110.0,109100.0,1.4867866]
[1749546338009,0.62638614,109110.0,109100.0,1.47820794]
[1749546338215,0.62638614,109110.0,109100.0,1.49536523]
[1749546338639,0.62638614,109110.0,109100.0,1.4696293]
[1749546338841,0.62638614,109110.0,109100.0,1.48678659]
[1749546339057,0.62638614,109110.0,109100.0,1.47820794]
[1749546339243,0.62638614,109110.0,109100.0,1.53605877]
[1749546339244,0.54163095,109110.0,109100.0,1.53605877]
[1749546339455,0.21079592,109110.0,109100.0,1.68271827]
[1749546339590,0.21079617,109110.0,109100.0,1.68271827]
[1749546340397,0.20163128,109110.0,109100.0,1.69987389]
[1749546340778,0.20163128,109110.0,109100.0,1.68271827]
[1749546340990,0.20163128,109110.0,109100.0,1.69987389]
[1749546341404,0.19246631,109110.0,109100.0,1.69987389]
[1749546341815,0.19246631,109110.0,109100.0,1.69987386]
[1749546342244,0.19246631,109110.0,109100.0,1.68271827]
[1749546342839,0.19246631,109110.0,109100.0,1.69987386]
[1749546343548,0.19246631,109110.0,109100.0,1.69988419]
[1749546343807,0.19246631,109110.0,109100.0,1.68271827]
[1749546344242,0.19246631,109110.0,109100.0,1.69988419]
[1749546344471,0.19246631,109110.0,109100.0,1.68271827]
[1749546344723,0.19246631,109110.0,109100.0,1.69988419]
[1749546345174,0.19246631,109110.0,109100.0,1.68271827]
[1749546345402,0.19246631,109110.0,109100.0,1.69988419]
[1749546345629,0.53246631,109110.0,109100.0,1.69988419]
[1749546345872,0.53246631,109110.0,109100.0,1.69988421]
[1749546346362,0.53246631,109110.0,109100.0,1.69988417]
[1749546346363,0.34916481,109110.0,109100.0,1.69988417]
[1749546346602,0.51122718,109120.0,109110.0,0.2]
[1749546346834,0.71284006,109120.0,109110.0,0.52496963]
[1749546347077,0.71284006,109120.0,109110.0,0.52496911]
[1749546347078,0.03665561,109120.0,109110.0,0.52496911]
[1749546347316,0.55994006,109120.0,109110.0,0.50780511]
[1749546347532,0.55994006,109120.0,109110.0,0.90780511]
[1749546347763,0.55994006,109120.0,109110.0,0.92496916]
[1749546348009,0.56094006,109120.0,109110.0,0.92496912]
[1749546348227,0.57010428,109120.0,109110.0,0.92496912]
[1749546348532,0.57010428,109120.0,109110.0,0.92496913]
[1749546349001,0.57110428,109120.0,109110.0,0.92496913]
[1749546349214,0.57110428,109120.0,109110.0,0.92496914]
[1749546349456,0.57110428,109120.0,109110.0,0.87012479]
[1749546349667,0.56194065,109120.0,109110.0,0.87012479]
[1749546349906,0.55277685,109120.0,109110.0,0.85296076]
[1749546350126,0.55277685,109120.0,109110.0,0.87012407]
[1749546350790,0.55277685,109120.0,109110.0,0.85296076]
[1749546351031,0.55277685,109120.0,109110.0,0.87012407]
[1749546351496,0.55277685,109120.0,109110.0,0.87012408]
[1749546351738,0.55277685,109120.0,109110.0,0.87012407]
[1749546352206,0.55277685,109120.0,109110.0,0.85296076]
[1749546352445,0.55277685,109120.0,109110.0,0.87012356]
[1749546352680,0.55277685,109120.0,109110.0,0.85296076]
[1749546353142,0.36032785,109120.0,109110.0,0.87012356]
[1749546353365,0.36949198,109120.0,109110.0,0.88034071]
[1749546353591,0.36949198,109120.0,109110.0,0.89750351]
[1749546353796,0.36032785,109120.0,109110.0,0.89750351]
[1749546354004,0.36949198,109120.0,109110.0,0.89750351]
[1749546354661,0.3786562,109120.0,109110.0,0.89750351]
[1749546354887,0.56194065,109120.0,109110.0,0.89750351]
[1749546355061,0.56194065,109120.0,109110.0,0.88034071]
[1749546355266,0.56194065,109120.0,109110.0,0.89750351]
[1749546355480,0.56194065,109120.0,109110.0,0.88034071]
[1749546355609,0.56194065,109120.0,109110.0,0.89750351]
[1749546355811,0.56194065,109120.0,109110.0,0.88034071]
[1749546356018,0.56194065,109120.0,109110.0,0.89750351]
[1749546356247,0.56194065,109120.0,109110.0,0.88034071]
[1749546356479,0.56194065,109120.0,109110.0,0.89750351]
[1749546356805,0.56194065,109120.0,109110.0,0.88034071]
[1749546357220,0.56194065,109120.0,109110.0,0.89743752]
[1749546357906,0.36949198,109120.0,109110.0,0.89743752]
[1749546358120,0.35116363,109120.0,109110.0,0.89743752]
[1749546358334,0.36032743,109120.0,109110.0,0.87005755]
[1749546358547,0.36032743,109120.0,109110.0,0.87005753]
[1749546358745,0.36032743,109120.0,109110.0,0.85296076]
[1749546358959,0.35116363,109120.0,109110.0,0.85296076]
[1749546359163,0.36032751,109120.0,109110.0,0.85296076]
[1749546359370,0.36032751,109120.0,109110.0,0.92490172]
[1749546359574,0.36032743,109120.0,109110.0,0.92490172]
[1749546360005,0.35932743,109120.0,109110.0,0.92490172]
[1749546360225,0.36749131,109120.0,109110.0,0.90780511]
[1749546360645,0.36749131,109120.0,109110.0,0.90880511]
[1749546360845,0.36749148,109120.0,109110.0,0.92590161]
[1749546361077,0.3766557,109120.0,109110.0,0.92590161]
[1749546361690,0.55994015,109120.0,109110.0,0.90880511]
[1749546361909,0.55994015,109120.0,109110.0,0.92590161]
[1749546362110,0.55994015,109120.0,109110.0,0.92588755]
[1749546362316,0.3766557,109120.0,109110.0,0.92588755]
[1749546362516,0.3766557,109120.0,109110.0,0.90880511]
[1749546362719,0.37665553,109120.0,109110.0,0.92588755]
[1749546362931,0.35832743,109120.0,109110.0,0.92588755]
[1749546363138,0.36749131,109120.0,109110.0,0.92588755]
[1749546363427,0.36749131,109120.0,109110.0,0.92588753]
[1749546363563,0.35832743,109120.0,109110.0,0.92588753]
[1749546363764,0.36748929,109130.0,109120.0,0.0319]
[1749546363974,0.36748853,109130.0,109120.0,0.27332137]
[1749546364174,0.37665174,109130.0,109120.0,0.30879353]
[1749546364376,0.36748853,109130.0,109120.0,0.70879353]
[1749546364598,0.36748853,109130.0,109120.0,0.72596927]
[1749546364800,0.35832549,109130.0,109120.0,0.70879353]
[1749546365002,0.36848829,109130.0,109120.0,0.73501745]
[1749546365220,0.38681462,109130.0,109120.0,0.71784191]
[1749546365422,0.38681538,109130.0,109120.0,0.7350175]
[1749546365623,0.377652,109130.0,109120.0,0.73501757]
[1749546365833,0.36848871,109130.0,109120.0,0.71784191]
[1749546366084,0.35932567,109130.0,109120.0,0.71784191]
[1749546366320,0.3684888,109130.0,109120.0,0.71784191]
[1749546366479,0.3694888,109130.0,109120.0,0.73501754]
[1749546366685,0.55275646,109130.0,109120.0,0.71784191]
[1749546366887,0.57108305,109130.0,109120.0,0.71784191]
[1749546367096,0.56192034,109130.0,109120.0,0.73501804]
[1749546367363,0.55275696,109130.0,109120.0,0.71784191]
[1749546367824,0.56192034,109130.0,109120.0,0.71784191]
[1749546368269,0.56192034,109130.0,109120.0,0.73501804]
[1749546368688,0.55275738,109130.0,109120.0,0.73501804]
[1749546369337,0.55275738,109130.0,109120.0,0.72596966]
[1749546369547,0.55275738,109130.0,109120.0,0.75024966]
[1749546369548,0.54359425,109130.0,109120.0,0.75024966]
[1749546369765,0.54359425,109130.0,109120.0,0.61507353]
[1749546369985,0.57619425,109130.0,109120.0,0.45370755]
[1749546370185,0.66987425,109130.0,109120.0,0.48113573]
[1749546370393,0.66987425,109130.0,109120.0,0.46896569]
[1749546370818,0.54359425,109130.0,109120.0,0.50549701]
[1749546371026,0.54359425,109130.0,109120.0,0.50549609]
[1749546371273,0.54359425,109130.0,109120.0,0.46089132]
[1749546371474,0.54359425,109130.0,109120.0,0.4780682]
[1749546371682,0.54359425,109130.0,109120.0,0.47806827]
[1749546372104,0.54359425,109130.0,109120.0,0.47806823]
[1749546372382,0.54359425,109130.0,109120.0,0.46089132]
[1749546372576,0.54359425,109130.0,109120.0,0.47806833]
[1749546372801,0.54359425,109130.0,109120.0,0.47806835]
[1749546373004,0.54359425,109130.0,109120.0,0.47806836]
[1749546373206,0.54359425,109130.0,109120.0,0.46089132]
[1749546373408,0.54359425,109130.0,109120.0,0.47806836]
[1749546374032,0.54359425,109130.0,109120.0,0.47649132]
[1749546374244,0.53443104,109130.0,109120.0,0.49365842]
[1749546374836,0.53443104,109130.0,109120.0,0.49365843]
[1749546375038,0.53443104,109130.0,109120.0,0.54850256]
[1749546375863,0.53443104,109130.0,109120.0,0.5485024]
[1749546376074,0.53443104,109130.0,109120.0,0.53133567]
[1749546376484,0.53443104,109130.0,109120.0,0.54850239]
[1749546376675,0.53443104,109130.0,109120.0,0.53290239]
[1749546376899,0.53443104,109130.0,109120.0,0.51573567]
[1749546377099,0.53443104,109130.0,109120.0,0.53290239]
[1749546377303,0.53443104,109130.0,109120.0,0.51573567]
[1749546377502,0.53443104,109130.0,109120.0,0.56520236]
[1749546377704,0.53443104,109130.0,109120.0,0.54803567]
[1749546377864,0.53443104,109130.0,109120.0,0.64171567]
[1749546378063,0.53443104,109130.0,109120.0,0.65888236]
[1749546378256,0.53443104,109130.0,109120.0,0.64171567]
[1749546378452,0.53443104,109130.0,109120.0,0.65888225]
[1749546378652,0.53443104,109130.0,109120.0,0.64171567]
[1749546378869,0.36032549,109130.0,109120.0,0.71414851]
[1749546379096,0.37865166,109130.0,109120.0,0.71414782]
[1749546379465,0.36948845,109130.0,109120.0,0.71414794]
[1749546379606,0.37865166,109130.0,109120.0,0.71414788]
[1749546379804,0.38781504,109130.0,109120.0,0.71414777]
[1749546380006,0.38781504,109130.0,109120.0,0.71414805]
[1749546380207,0.38781504,109130.0,109120.0,0.69698221]
[1749546380408,0.38781504,109130.0,109120.0,0.71414805]
[1749546380607,0.36948845,109130.0,109120.0,0.71414805]
[1749546380808,0.38781478,109130.0,109120.0,0.69698221]
[1749546381040,0.37865149,109130.0,109120.0,0.71414793]
[1749546381278,0.3878147,109130.0,109120.0,0.71414796]
[1749546381450,0.37865149,109130.0,109120.0,0.7141477]
[1749546381662,0.37865208,109130.0,109120.0,0.69698221]
[1749546381892,0.38781546,109130.0,109120.0,0.71414769]
[1749546382044,0.38781537,109130.0,109120.0,0.71414769]
[1749546382210,0.36948887,109130.0,109120.0,0.69698221]
[1749546382407,0.35116262,109130.0,109120.0,0.7141477]
[1749546382731,0.36032541,109130.0,109120.0,0.7416487]
[1749546382866,0.342,109130.0,109120.0,0.68678673]
[1749546383073,0.002,109130.0,109120.0,1.26529798]
[1749546383469,0.002,109130.0,109120.0,1.28244522]
[1749546383674,0.002,109130.0,109120.0,1.28244513]
[1749546384079,0.002,109130.0,109120.0,0.77447572]
[1749546384477,0.001,109130.0,109120.0,0.77447575]
[1749546384704,0.38581109,109140.0,109130.0,0.2305]
[1749546385044,0.56906196,109140.0,109130.0,0.4707354]
[1749546385225,0.55990009,109140.0,109130.0,0.48788224]
[1749546386074,0.55990009,109140.0,109130.0,0.4707354]
[1749546386279,0.55990009,109140.0,109130.0,0.48786802]
[1749546386529,0.56090009,109140.0,109130.0,0.48786827]
[1749546386890,0.55173806,109140.0,109130.0,0.48786701]
[1749546387093,0.55173806,109140.0,109130.0,0.4707354]
[1749546387284,0.55273806,109140.0,109130.0,0.48786701]
[1749546388071,0.54357586,109140.0,109130.0,0.4552354]
[1749546388396,0.53441341,109140.0,109130.0,0.8552354]
[1749546388604,0.53441341,109140.0,109130.0,0.89394274]
[1749546388764,0.53441341,109140.0,109130.0,0.87681113]
[1749546389743,0.53441341,109140.0,109130.0,0.89394325]
[1749546389957,0.53441341,109140.0,109130.0,0.87681113]
[1749546390232,0.53441341,109140.0,109130.0,0.89394305]
[1749546390681,0.53441341,109140.0,109130.0,0.87681113]
[1749546390937,0.53441341,109140.0,109130.0,0.89394291]
[1749546391549,0.53441341,109140.0,109130.0,0.87681113]
[1749546391770,0.53441341,109140.0,109130.0,0.89394305]
[1749546392181,0.53441341,109140.0,109130.0,0.87681113]
[1749546392384,0.53441341,109140.0,109130.0,0.89394305]
[1749546392583,0.53441341,109140.0,109130.0,0.87681113]
[1749546392795,0.53441341,109140.0,109130.0,0.89394304]
[1749546393000,0.53441341,109140.0,109130.0,0.87681113]
[1749546393206,0.53441341,109140.0,109130.0,0.89394304]
[1749546393380,0.53441341,109140.0,109130.0,0.89394305]
[1749546393585,0.53441341,109140.0,109130.0,0.87681113]
[1749546393789,0.53441341,109140.0,109130.0,0.89394305]
[1749546394002,0.53441341,109140.0,109130.0,0.89191113]
[1749546394423,0.53441341,109140.0,109130.0,0.90904305]
[1749546395279,0.53441341,109140.0,109130.0,0.89191113]
[1749546395911,0.53441341,109140.0,109130.0,0.90904305]
[1749546396827,0.53441341,109140.0,109130.0,0.89394454]
[1749546397231,0.53441341,109140.0,109130.0,0.87681113]
[1749546397436,0.53441341,109140.0,109130.0,0.89394454]
[1749546398260,0.53441341,109140.0,109130.0,0.89394731]
[1749546398641,0.53441341,109140.0,109130.0,0.78535786]
[1749546398911,0.53441341,109140.0,109130.0,0.80249404]
[1749546400290,0.53441341,109140.0,109130.0,0.89392047]
[1749546400490,0.53441341,109140.0,109130.0,0.89392914]
[1749546400894,0.53441341,109140.0,109130.0,0.87678429]
[1749546401236,0.56541341,109140.0,109130.0,0.70857128]
[1749546401357,0.65889341,109140.0,109130.0,0.45371542]
[1749546401601,0.65889341,109140.0,109130.0,0.46882083]
[1749546401602,0.74310769,109140.0,109130.0,0.46882083]
[1749546401807,0.74310769,109140.0,109130.0,0.44138485]
[1749546402027,0.74310769,109140.0,109130.0,0.43281509]
[1749546402515,0.2016123,109120.0,109110.0,0.26400655]
[1749546402721,0.5733123,109120.0,109110.0,0.38172655]
[1749546402916,0.5733123,109120.0,109110.0,0.3139736]
[1749546403119,0.5733123,109120.0,109110.0,0.7139736]
[1749546403325,0.5824789,109120.0,109110.0,0.67740319]
[1749546403767,0.5824789,109120.0,109110.0,0.65312988]
[1749546403901,0.5824789,109120.0,109110.0,0.63600061]
[1749546404335,0.5824789,109120.0,109110.0,0.44456525]
[1749546404524,0.5824789,109120.0,109110.0,0.44456542]
[1749546404737,0.63771434,109120.0,109110.0,0.001]
[1749546404950,0.7295122,109120.0,109110.0,0.02669553]
[1749546405434,0.7295122,109120.0,109110.0,0.001]
[1749546405652,0.7295122,109120.0,109110.0,0.0266965]
[1749546405876,0.7295122,109120.0,109110.0,0.02669642]
[1749546406071,0.7295122,109120.0,109110.0,0.0256964]
[1749546406274,0.56326614,109110.0,109100.0,1.43449404]
[1749546406480,0.56326614,109110.0,109100.0,1.40705806]
[1749546406691,0.56326614,109110.0,109100.0,1.43275459]
[1749546407099,0.56326614,109110.0,109100.0,1.43272967]
[1749546407365,0.56326614,109110.0,109100.0,1.41661108]
[1749546407569,0.56326614,109110.0,109100.0,1.43371744]
[1749546407771,0.56326614,109110.0,109100.0,1.4251643]
[1749546407980,0.56326614,109110.0,109100.0,1.41661121]
[1749546408213,0.56326614,109110.0,109100.0,1.43371751]
[1749546409145,0.56326614,109110.0,109100.0,1.40805806]